bitfinex/quotes_SOLUSD_20241111
["timestamp","ask_amount","ask_price","bid_price","bid_amount"]
[1731303461303,0.12549,204.78,204.71,30.79346254]
[1731303461612,23.776884,204.82,204.75,30.79346254]
[1731303461794,0.12549,204.81,204.67,0.1]
[1731303461990,0.12549,204.79,204.73,35.67786254]
[1731303462191,0.12549,204.79,204.73,4.8844]
[1731303462497,0.12549,204.79,204.74,30.79346254]
[1731303462994,0.12549,204.79,204.73,4.8844]
[1731303463403,30.91895254,204.79,204.73,4.8844]
[1731303463709,30.41895254,204.79,204.73,4.8844]
[1731303464111,30.41895254,204.79,204.72,20.0]
[1731303464895,0.12549,204.79,204.73,30.79346254]
[1731303465091,30.79346254,204.78,204.72,20.0]
[1731303465297,0.12549,204.79,204.73,30.79346254]
[1731303465610,0.12549,204.79,204.72,20.0]
[1731303465611,0.12549,204.79,204.72,50.79346254]
[1731303466007,23.902374,204.77,204.71,30.79346254]
[1731303466209,0.12549,204.77,204.73,30.79346254]
[1731303466793,0.12549,204.77,204.76,30.79346254]
[1731303468300,0.12549,204.77,204.76,35.67716254]
[1731303469012,0.12549,204.77,204.76,55.67716254]
[1731303469517,0.12549,204.77,204.76,50.79346254]
[1731303470505,6.1617,204.91,204.85,30.79346254]
[1731303470713,6.1617,204.91,204.77,24.8835]
[1731303470714,41.83546254,204.91,204.84,30.79346254]
[1731303471420,30.79346254,204.88,204.81,30.79346254]
[1731303472216,54.57034654,204.87,204.8,30.79346254]
[1731303472393,54.57034654,204.87,204.78,4.8832]
[1731303472394,23.776884,204.87,204.81,30.79346254]
[1731303472597,23.776884,204.85,204.81,30.79346254]
[1731303472903,0.12549,204.84,204.79,30.79346254]
[1731303473106,0.12549,204.84,204.78,35.67666254]
[1731303473705,0.12549,204.84,204.8,30.79346254]
[1731303473906,0.12549,204.84,204.79,30.79346254]
[1731303474304,0.12549,204.84,204.8,30.79346254]
[1731303474794,0.12549,204.84,204.82,30.79346254]
[1731303474999,23.902374,204.86,204.81,30.79346254]
[1731303476203,30.79346254,204.88,204.84,30.79346254]
[1731303476204,23.776884,204.88,204.84,30.79346254]
[1731303476514,23.776884,204.9,204.84,30.79346254]
[1731303476721,0.12549,204.89,204.84,30.79346254]
[1731303476920,0.12549,204.89,204.83,30.79346254]
[1731303477091,0.12549,204.89,204.81,4.8825]
[1731303477092,30.79346254,204.89,204.82,30.79346254]
[1731303477291,30.91895254,204.88,204.81,30.79346254]
[1731303477812,30.91895254,204.88,204.67,30.79346254]
[1731303477813,6.31369,204.81,204.67,30.79346254]
[1731303478013,30.79346254,204.74,204.65,30.79346254]
[1731303478215,0.12549,204.71,204.65,30.79346254]
[1731303478724,0.12549,204.68,204.63,30.79346254]
[1731303479298,0.12549,204.68,204.65,30.79346254]
[1731303480404,30.79346254,204.76,204.67,30.79346254]
[1731303480602,23.776884,204.75,204.69,30.79346254]
[1731303480917,0.12549,204.74,204.69,30.79346254]
[1731303481099,0.12549,204.74,204.67,30.79346254]
[1731303481305,0.12549,204.68,204.49,4.8902]
[1731303481522,0.12549,204.62,204.56,30.79346254]
[1731303482299,0.12549,204.62,204.45,0.1]
[1731303482300,30.79346254,204.57,204.38,5.09860397]
[1731303482514,0.12549,204.53,204.46,30.79346254]
[1731303482716,0.12549,204.53,204.48,30.79346254]
[1731303483104,53.47036254,204.58,204.5,30.79346254]
[1731303483308,54.57034654,204.57,204.49,30.79346254]
[1731303483613,0.12549,204.56,204.5,30.79346254]
[1731303484015,0.12549,204.56,204.42,4.9918]
[1731303484016,6.0381,204.58,204.53,30.79346254]
[1731303484228,6.0381,204.58,204.43,0.1]
[1731303484401,23.776884,204.62,204.56,30.79346254]
[1731303484597,36.99666254,204.64,204.48,30.79346254]
[1731303484598,23.776884,204.63,204.58,30.79346254]
[1731303484804,23.776884,204.63,204.57,30.79346254]
[1731303484805,0.12549,204.62,204.57,30.79346254]
[1731303485220,23.776884,204.63,204.57,30.79346254]
[1731303485403,0.12549,204.62,204.57,30.79346254]
[1731303485915,30.91895254,204.6,204.53,30.79346254]
[1731303486217,54.69583654,204.6,204.53,30.79346254]
[1731303486408,23.902374,204.6,204.54,30.79346254]
[1731303486811,23.902374,204.61,204.54,30.79346254]
[1731303487014,0.12549,204.61,204.55,35.68216254]
[1731303487399,0.12549,204.62,204.56,30.79346254]
[1731303487826,0.12549,204.63,204.56,30.79346254]
[1731303488326,23.902374,204.63,204.56,30.79346254]
[1731303488524,54.69583654,204.63,204.56,30.79346254]
[1731303488822,0.12549,204.61,204.56,30.79346254]
[1731303489202,54.69583654,204.59,204.52,30.79346254]
[1731303489404,23.902374,204.59,204.52,30.79346254]
[1731303489613,30.91895254,204.59,204.52,30.79346254]
[1731303489919,23.902374,204.55,204.48,30.79346254]
[1731303490108,54.69583654,204.55,204.47,30.79346254]
[1731303490427,0.12549,204.5,204.44,30.79346254]
[1731303490602,23.776884,204.55,204.49,30.79346254]
[1731303490937,36.76005111,204.6,204.53,30.79346254]
[1731303491122,54.57034654,204.6,204.53,30.79346254]
[1731303491420,0.12549,204.59,204.53,30.79346254]
[1731303492699,30.79346254,204.58,204.45,20.0]
[1731303492904,30.91895254,204.57,204.5,30.79346254]
[1731303493125,0.12549,204.55,204.5,30.79346254]
[1731303493334,0.12549,204.55,204.49,30.79346254]
[1731303493505,0.12549,204.55,204.5,30.79346254]
[1731303493706,23.902374,204.57,204.5,30.79346254]
[1731303494025,59.58423654,204.57,204.5,30.79346254]
[1731303494415,54.69583654,204.55,204.47,30.79346254]
[1731303494614,23.902374,204.55,204.49,30.79346254]
[1731303494816,0.12549,204.55,204.5,30.79346254]
[1731303495141,0.12549,204.55,204.49,30.79346254]
[1731303495714,0.12549,204.55,204.5,30.79346254]
[1731303496808,23.776884,204.57,204.52,30.79346254]
[1731303497112,4.8877,204.6,204.54,30.79346254]
[1731303497625,42.22396254,204.61,204.54,30.79346254]
[1731303497813,0.12549,204.6,204.54,30.79346254]
[1731303498007,6.5431,204.61,204.56,30.79346254]
[1731303499218,16.3457,204.66,204.48,30.79346254]
[1731303499219,4.8867,204.64,204.58,30.79346254]
[1731303499408,4.8867,204.64,204.57,30.79346254]
[1731303499608,35.68016254,204.64,204.57,30.79346254]
[1731303500116,0.12549,204.63,204.59,30.79346254]
[1731303500417,6.6409,204.66,204.62,30.79346254]
[1731303500745,6.6409,204.66,204.52,16.1827]
[1731303500746,0.12549,204.65,204.63,30.79346254]
[1731303500910,6.4321,204.71,204.57,0.2]
[1731303501108,37.22556254,204.71,204.64,30.79346254]
[1731303501306,37.22556254,204.71,204.58,4.888]
[1731303501307,0.12549,204.7,204.65,30.79346254]
[1731303501729,6.4321,204.71,204.67,30.79346254]
[1731303502035,30.79346254,204.74,204.67,30.79346254]
[1731303502212,0.12549,204.73,204.67,30.79346254]
[1731303502411,30.79346254,204.73,204.67,30.79346254]
[1731303502606,30.79346254,204.69,204.62,30.79346254]
[1731303503223,30.79346254,204.71,204.63,30.79346254]
[1731303503407,0.12549,204.7,204.65,30.79346254]
[1731303504223,35.67756254,204.75,204.67,30.79346254]
[1731303504731,30.79346254,204.74,204.67,30.79346254]
[1731303505626,23.902374,204.73,204.67,30.79346254]
[1731303505807,54.69583654,204.73,204.66,30.79346254]
[1731303506011,23.902374,204.71,204.65,30.79346254]
[1731303506224,54.69583654,204.71,204.64,30.79346254]
[1731303506933,23.902374,204.71,204.64,30.79346254]
[1731303507127,35.80435254,204.69,204.62,30.79346254]
[1731303507633,35.67756254,204.75,204.67,30.79346254]
[1731303508021,30.79346254,204.73,204.66,30.79346254]
[1731303508332,30.79346254,204.74,204.67,30.79346254]
[1731303508533,0.12549,204.74,204.67,30.79346254]
[1731303508928,0.12549,204.73,204.67,30.79346254]
[1731303509113,0.12549,204.73,204.61,0.1]
[1731303509114,0.12549,204.71,204.65,35.67976254]
[1731303509315,0.12549,204.71,204.65,4.8863]
[1731303510228,0.12549,204.7,204.64,30.79346254]
[1731303510444,0.12549,204.7,204.65,30.79346254]
[1731303510927,0.12549,204.71,204.65,30.79346254]
[1731303511708,0.12549,204.71,204.65,4.8863]
[1731303511913,30.91895254,204.71,204.65,4.8863]
[1731303512112,0.12549,204.71,204.65,35.67976254]
[1731303512329,0.1,204.63,204.39,0.1]
[1731303512537,6.564,204.65,204.39,0.1]
[1731303512538,30.79346254,204.56,204.47,30.79346254]
[1731303513115,0.12549,204.55,204.47,30.79346254]
[1731303513519,23.776884,204.57,204.49,30.79346254]
[1731303514338,0.12549,204.56,204.49,30.79346254]
[1731303514541,0.12549,204.56,204.51,30.79346254]
[1731303515035,0.12549,204.56,204.5,30.79346254]
[1731303515239,0.12549,204.56,204.39,16.7572]
[1731303515540,0.12549,204.5,204.44,30.79346254]
[1731303515719,23.776884,204.57,204.43,0.1]
[1731303516138,54.57034654,204.57,204.5,30.79346254]
[1731303516338,23.776884,204.57,204.43,0.1]
[1731303516536,54.57034654,204.57,204.43,0.1]
[1731303516842,30.91895254,204.56,204.49,30.79346254]
[1731303517141,30.79346254,204.58,204.51,30.79346254]
[1731303518034,0.12549,204.57,204.51,30.79346254]
[1731303518337,30.91895254,204.57,204.5,30.79346254]
[1731303518838,0.12549,204.57,204.51,30.79346254]
[1731303519141,30.91895254,204.57,204.5,30.79346254]
[1731303519323,0.12549,204.55,204.5,30.79346254]
[1731303519834,30.79346254,204.6,204.46,0.1]
[1731303520138,30.79346254,204.58,204.46,0.1]
[1731303520318,30.79346254,204.58,204.51,30.79346254]
[1731303520821,0.12549,204.57,204.52,30.79346254]
[1731303521225,0.12549,204.57,204.51,30.79346254]
[1731303521448,30.91895254,204.57,204.46,0.1]
[1731303521623,30.91895254,204.57,204.5,30.79346254]
[1731303521944,30.91895254,204.58,204.51,30.79346254]
[1731303522134,0.12549,204.56,204.5,30.79346254]
[1731303522323,0.12549,204.56,204.42,0.1]
[1731303522324,0.12549,204.54,204.49,20.0]
[1731303522725,54.57034654,204.57,204.49,50.79346254]
[1731303523040,30.91895254,204.56,204.49,50.79346254]
[1731303523241,30.91895254,204.56,204.46,0.1]
[1731303523242,0.12549,204.56,204.52,30.79346254]
[1731303523748,0.12549,204.56,204.46,0.1]
[1731303523749,23.776884,204.52,204.46,30.79346254]
[1731303524143,0.12549,204.51,204.46,30.79346254]
[1731303524442,0.12549,204.51,204.47,30.79346254]
[1731303524626,0.12549,204.52,204.47,30.79346254]
[1731303524822,58.67786254,204.54,204.5,30.79346254]
[1731303524823,6.6513,204.54,204.5,30.79346254]
[1731303525227,6.6513,204.54,204.48,30.79346254]
[1731303525546,6.6513,204.54,204.5,30.79346254]
[1731303525742,6.6513,204.54,204.41,0.1]
[1731303525743,0.12549,204.53,204.49,30.79346254]
[1731303527021,0.12549,204.53,204.43,0.1]
[1731303527346,23.776884,204.58,204.51,30.79346254]
[1731303527534,0.12549,204.57,204.51,30.79346254]
[1731303528133,30.91895254,204.55,204.48,30.79346254]
[1731303528338,0.12549,204.53,204.48,30.79346254]
[1731303528530,0.12549,204.53,204.47,30.79346254]
[1731303529134,0.12549,204.51,204.44,30.79346254]
[1731303529437,0.12549,204.51,204.45,30.79346254]
[1731303530645,6.1018,204.56,204.49,30.79346254]
[1731303530828,36.89526254,204.56,204.49,30.79346254]
[1731303531033,6.1018,204.56,204.49,30.79346254]
[1731303531234,6.1018,204.56,204.51,30.79346254]
[1731303531548,0.12549,204.55,204.51,30.79346254]
[1731303531746,0.12549,204.55,204.5,30.79346254]
[1731303532244,6.1018,204.56,204.5,30.79346254]
[1731303532545,0.12549,204.55,204.5,30.79346254]
[1731303532753,54.69583654,204.55,204.48,30.79346254]
[1731303532930,23.902374,204.55,204.48,30.79346254]
[1731303533131,23.902374,204.55,204.5,30.79346254]
[1731303533527,23.902374,204.55,204.49,30.79346254]
[1731303533733,30.91895254,204.51,204.38,5.01634029]
[1731303533937,10.9904,204.56,204.46,30.79346254]
[1731303534134,23.776884,204.53,204.47,30.79346254]
[1731303534339,23.776884,204.55,204.38,5.01634029]
[1731303534528,0.12549,204.54,204.38,5.01634029]
[1731303535435,28.765684,204.55,204.44,30.79346254]
[1731303535436,0.12549,204.51,204.44,30.79346254]
[1731303535832,23.902374,204.51,204.44,30.79346254]
[1731303537042,23.776884,204.53,204.46,30.79346254]
[1731303537439,23.776884,204.54,204.47,30.79346254]
[1731303537846,0.12549,204.53,204.47,30.79346254]
[1731303539653,23.776884,204.55,204.49,30.79346254]
[1731303539839,6.1018,204.56,204.49,30.79346254]
[1731303540045,0.12549,204.55,204.49,30.79346254]
[1731303540250,6.1018,204.56,204.51,30.79346254]
[1731303540558,6.1018,204.56,204.52,30.79346254]
[1731303540942,0.12549,204.55,204.52,30.79346254]
[1731303541240,0.12549,204.55,204.53,30.79346254]
[1731303541441,0.12549,204.55,204.52,30.79346254]
[1731303541641,0.12549,204.55,204.53,30.79346254]
[1731303541841,6.498,204.61,204.54,30.79346254]
[1731303542043,6.498,204.61,204.56,30.79346254]
[1731303542246,0.12549,204.6,204.57,30.79346254]
[1731303542956,6.498,204.61,204.57,30.79346254]
[1731303543160,6.498,204.61,204.58,30.79346254]
[1731303543360,6.498,204.61,204.56,30.79346254]
[1731303543540,30.79346254,204.57,204.5,30.79346254]
[1731303543747,0.12549,204.54,204.48,30.79346254]
[1731303544060,0.12549,204.52,204.41,16.426]
[1731303544444,30.91895254,204.52,204.45,30.79346254]
[1731303545149,23.902374,204.52,204.46,30.79346254]
[1731303545743,23.902374,204.52,204.38,5.00629262]
[1731303545744,54.69583654,204.52,204.45,30.79346254]
[1731303545947,23.902374,204.5,204.44,30.79346254]
[1731303546143,23.902374,204.5,204.4,30.79346254]
[1731303546144,54.69583654,204.48,204.4,30.79346254]
[1731303546446,30.79346254,204.45,204.38,35.79975516]
[1731303546646,23.902374,204.46,204.4,30.79346254]
[1731303546858,23.776884,204.47,204.4,30.79346254]
[1731303547359,0.12549,204.46,204.4,30.79346254]
[1731303547758,0.12549,204.44,204.39,30.79346254]
[1731303547956,0.12549,204.44,204.4,30.79346254]
[1731303548265,0.12549,204.44,204.41,30.79346254]
[1731303548847,30.79346254,204.49,204.41,30.79346254]
[1731303549060,23.902374,204.48,204.41,30.79346254]
[1731303549463,0.12549,204.48,204.43,30.79346254]
[1731303549665,0.12549,204.48,204.42,30.79346254]
[1731303549965,0.12549,204.48,204.41,30.79346254]
[1731303550468,35.80945254,204.48,204.41,30.79346254]
[1731303550655,0.12549,204.46,204.4,30.79346254]
[1731303551569,0.12549,204.46,204.29,22.7074]
[1731303551570,0.12549,204.46,204.41,30.79346254]
[1731303551762,0.12549,204.44,204.4,30.79346254]
[1731303552949,0.12549,204.44,204.41,30.79346254]
[1731303553264,0.12549,204.46,204.41,30.79346254]
[1731303553568,6.0928,204.5,204.45,30.79346254]
[1731303553740,6.0928,204.5,204.46,30.79346254]
[1731303554141,0.12549,204.49,204.44,30.79346254]
[1731303554346,0.12549,204.49,204.31,0.2]
[1731303554347,30.91895254,204.49,204.31,0.2]
[1731303554542,30.91895254,204.49,204.41,30.79346254]
[1731303554543,30.79346254,204.48,204.41,30.79346254]
[1731303554747,0.12549,204.47,204.41,30.79346254]
[1731303554946,0.12549,204.47,204.43,30.79346254]
[1731303555974,0.12549,204.47,204.42,30.79346254]
[1731303556555,0.12549,204.47,204.41,30.79346254]
[1731303556556,23.902374,204.47,204.41,30.79346254]
[1731303557469,28.793174,204.47,204.4,30.79346254]
[1731303557664,28.793174,204.47,204.41,30.79346254]
[1731303558063,0.12549,204.47,204.41,30.79346254]
[1731303558261,23.902374,204.47,204.41,30.79346254]
[1731303558858,23.902374,204.47,204.3,20.1]
[1731303558859,35.80965254,204.47,204.39,30.79346254]
[1731303559060,23.776884,204.46,204.39,30.79346254]
[1731303559377,30.79346254,204.4,204.33,30.79346254]
[1731303559556,30.79346254,204.4,204.32,30.79346254]
[1731303559557,6.4702,204.39,204.32,30.79346254]
[1731303559756,6.4702,204.39,204.35,30.79346254]
[1731303559980,6.4702,204.39,204.24,46.40266254]
[1731303559981,6.4702,204.39,204.37,30.79346254]
[1731303560273,15.5685,204.42,204.37,30.79346254]
[1731303560452,6.4702,204.44,204.41,30.79346254]
[1731303560653,0.12549,204.47,204.43,30.79346254]
[1731303560880,0.12549,204.47,204.42,30.79346254]
[1731303561254,0.12549,204.47,204.36,30.79346254]
[1731303561255,30.91895254,204.45,204.37,30.79346254]
[1731303561456,30.91895254,204.45,204.38,30.79346254]
[1731303561675,0.12549,204.45,204.38,30.79346254]
[1731303561853,0.12549,204.45,204.39,30.79346254]
[1731303562177,0.12549,204.44,204.39,30.79346254]
[1731303562355,0.12549,204.44,204.38,30.79346254]
[1731303562876,0.12549,204.44,204.29,0.1]
[1731303562877,30.91895254,204.44,204.37,30.79346254]
[1731303563375,30.91895254,204.44,204.36,30.79346254]
[1731303563572,30.79346254,204.42,204.35,30.79346254]
[1731303563881,30.79346254,204.42,204.27,0.1]
[1731303564058,54.57034654,204.43,204.36,30.79346254]
[1731303564260,30.79346254,204.42,204.34,30.79346254]
[1731303564468,54.57034654,204.43,204.36,30.79346254]
[1731303564783,28.668484,204.43,204.36,30.79346254]
[1731303564959,23.776884,204.44,204.38,30.79346254]
[1731303565158,35.68476254,204.45,204.38,30.79346254]
[1731303565358,35.68476254,204.45,204.27,0.1]
[1731303565359,0.12549,204.44,204.37,30.79346254]
[1731303565772,0.12549,204.44,204.38,30.79346254]
[1731303566354,5.01689,204.44,204.38,30.79346254]
[1731303566772,5.01689,204.44,204.38,19.46302484]
[1731303567261,5.01689,204.44,204.37,19.46302484]
[1731303567262,23.776884,204.43,204.37,19.46302484]
[1731303567875,43.23990884,204.43,204.36,19.46302484]
[1731303568063,4.8918,204.42,204.25,20.1]
[1731303568261,43.23990884,204.4,204.25,0.1]
[1731303568465,16.0854,204.38,204.32,19.46302484]
[1731303568672,16.0854,204.38,204.31,19.46302484]
[1731303568872,16.0854,204.38,204.22,0.1]
[1731303569081,16.0854,204.38,204.31,19.46302484]
[1731303569572,35.54842484,204.38,204.22,0.1]
[1731303569765,35.54842484,204.38,204.31,19.46302484]
[1731303570168,24.35602484,204.37,204.3,19.46302484]
[1731303570370,24.35602484,204.37,204.29,19.46302484]
[1731303570564,23.776884,204.36,204.3,19.46302484]
[1731303570767,23.776884,204.36,204.3,31.16665601]
[1731303571070,23.776884,204.36,204.29,31.16665601]
[1731303571271,54.94354001,204.36,204.29,31.16665601]
[1731303571474,59.83694001,204.36,204.29,31.16665601]
[1731303571978,16.0854,204.38,204.35,31.16665601]
[1731303572290,16.0854,204.38,204.36,31.16665601]
[1731303572462,16.0854,204.38,204.24,31.36665601]
[1731303572463,16.0854,204.38,204.35,31.16665601]
[1731303572782,6.0284,204.39,204.37,31.16665601]
[1731303572977,16.0854,204.43,204.38,31.16665601]
[1731303573157,16.0854,204.43,204.41,31.16665601]
[1731303573560,6.0284,204.44,204.41,31.16665601]
[1731303573774,37.19505601,204.44,204.37,31.16665601]
[1731303573956,0.12549,204.43,204.37,31.16665601]
[1731303574162,0.12549,204.43,204.39,31.16665601]
[1731303574484,31.16665601,204.42,204.35,31.16665601]
[1731303574686,0.12549,204.43,204.34,31.16665601]
[1731303574889,31.16665601,204.4,204.33,31.16665601]
[1731303575058,31.16665601,204.39,204.32,31.16665601]
[1731303575262,31.16665601,204.37,204.24,16.3065]
[1731303575461,23.776884,204.36,204.3,31.16665601]
[1731303575871,23.776884,204.36,204.31,31.16665601]
[1731303576067,23.776884,204.36,204.3,31.16665601]
[1731303576279,31.16665601,204.35,204.27,31.16665601]
[1731303576492,54.94354001,204.36,204.28,31.16665601]
[1731303576780,23.776884,204.36,204.29,31.16665601]
[1731303576971,23.776884,204.36,204.3,31.16665601]
[1731303577285,23.776884,204.36,204.29,31.16665601]
[1731303577467,23.776884,204.36,204.21,0.1]
[1731303577468,23.776884,204.34,204.28,31.16665601]
[1731303578066,4.8937,204.35,204.29,31.16665601]
[1731303578566,23.776884,204.35,204.29,31.16665601]
[1731303578962,54.94354001,204.35,204.28,31.16665601]
[1731303579175,6.0071,204.34,204.28,31.16665601]
[1731303579374,37.17375601,204.34,204.27,31.16665601]
[1731303579578,4.894,204.33,204.27,31.16665601]
[1731303580787,23.776884,204.32,204.26,31.16665601]
[1731303580986,28.671184,204.32,204.26,31.16665601]
[1731303581373,31.16665601,204.28,204.2,31.16665601]
[1731303581563,31.16665601,204.28,204.21,31.16665601]
[1731303581764,31.16665601,204.29,204.22,31.16665601]
[1731303581969,23.776884,204.28,204.22,31.16665601]
[1731303582172,23.776884,204.28,204.13,0.1]
[1731303582374,28.671984,204.29,204.22,31.16665601]
[1731303582774,59.83864001,204.29,204.22,31.16665601]
[1731303583184,23.776884,204.27,204.21,31.16665601]
[1731303583388,54.94354001,204.27,204.2,31.16665601]
[1731303584375,59.83914001,204.27,204.2,31.16665601]
[1731303584571,31.16665601,204.24,204.13,20.0]
[1731303584773,54.94354001,204.2,204.07,0.1]
[1731303584976,31.16665601,204.19,204.12,31.16665601]
[1731303585218,31.16665601,204.21,204.14,31.16665601]
[1731303585484,23.776884,204.2,204.15,31.16665601]
[1731303585683,23.776884,204.21,204.15,31.16665601]
[1731303586003,28.673484,204.22,204.15,31.16665601]
[1731303586285,59.84014001,204.22,204.15,31.16665601]
[1731303586789,23.776884,204.22,204.17,31.16665601]
[1731303586963,15.6401,204.25,204.2,31.16665601]
[1731303587168,15.6401,204.25,204.13,20.0]
[1731303587383,0.12549,204.24,204.21,31.16665601]
[1731303587591,15.6401,204.25,204.21,31.16665601]
[1731303587976,0.12549,204.24,204.21,31.16665601]
[1731303588870,0.12549,204.24,204.2,31.16665601]
[1731303588871,23.902374,204.24,204.2,31.16665601]
[1731303589074,23.902374,204.24,204.18,31.16665601]
[1731303589290,23.902374,204.24,204.19,31.16665601]
[1731303589494,55.06903001,204.24,204.17,31.16665601]
[1731303589894,23.902374,204.24,204.18,31.16665601]
[1731303590196,28.798574,204.24,204.18,31.16665601]
[1731303590390,59.96523001,204.24,204.17,31.16665601]
[1731303593499,31.16665601,204.22,204.15,31.16665601]
[1731303594074,23.776884,204.21,204.15,31.16665601]
[1731303594287,54.94354001,204.21,204.14,31.16665601]
[1731303594476,31.16665601,204.2,204.13,31.16665601]
[1731303594681,23.776884,204.19,204.13,31.16665601]
[1731303594902,23.776884,204.19,204.14,31.16665601]
[1731303595280,23.776884,204.21,204.15,31.16665601]
[1731303595507,23.776884,204.21,204.16,31.16665601]
[1731303595682,23.776884,204.21,204.17,31.16665601]
[1731303595881,23.776884,204.23,204.17,31.16665601]
[1731303596075,0.12549,204.24,204.19,31.16665601]
[1731303596292,31.29214601,204.24,204.17,31.16665601]
[1731303596497,0.12549,204.24,204.19,31.16665601]
[1731303596798,0.12549,204.24,204.2,31.16665601]
[1731303597398,23.902374,204.24,204.19,31.16665601]
[1731303597590,14.43763083,204.32,204.23,31.16665601]
[1731303597907,31.16665601,204.42,204.31,31.16665601]
[1731303598202,31.16665601,204.4,204.32,31.16665601]
[1731303598584,37.64455601,204.44,204.36,31.16665601]
[1731303598896,31.16665601,204.42,204.34,31.16665601]
[1731303599690,37.64455601,204.44,204.36,31.16665601]
[1731303600079,37.64455601,204.44,204.29,0.1]
[1731303600080,6.4779,204.44,204.34,31.16665601]
[1731303600280,31.16665601,204.42,204.34,31.16665601]
[1731303600481,6.4779,204.49,204.38,31.16665601]
[1731303600697,6.4779,204.49,204.43,31.16665601]
[1731303601197,0.12549,204.48,204.41,31.16665601]
[1731303601399,6.4779,204.49,204.43,31.16665601]
[1731303601604,47.26965601,204.53,204.45,31.16665601]
[1731303602718,31.16665601,204.53,204.45,31.16665601]
[1731303603002,6.4779,204.54,204.46,31.16665601]
[1731303604288,31.16665601,204.57,204.46,31.16665601]
[1731303604488,37.34765601,204.59,204.46,51.16665601]
[1731303604691,31.16665601,204.61,204.46,20.0]
[1731303604995,31.16665601,204.6,204.46,51.16665601]
[1731303605710,31.16665601,204.63,204.47,20.0]
[1731303605893,31.16665601,204.62,204.55,31.16665601]
[1731303606503,31.16665601,204.63,204.55,31.16665601]
[1731303606706,31.16665601,204.62,204.55,31.16665601]
[1731303606909,31.16665601,204.63,204.55,31.16665601]
[1731303607408,31.16665601,204.63,204.56,31.16665601]
[1731303607792,31.16665601,204.64,204.57,31.16665601]
[1731303607991,4.884,204.75,204.63,31.16665601]
[1731303608207,31.16665601,204.73,204.65,31.16665601]
[1731303608512,33.8660516,204.84,204.58,20.0]
[1731303608513,0.83069205,204.8,204.76,0.1]
[1731303608704,0.1,204.93,204.69,6.5045]
[1731303609013,0.1,204.93,204.84,31.16665601]
[1731303609512,4.8799,204.92,204.84,31.16665601]
[1731303609721,4.8799,204.92,204.86,31.16665601]
[1731303610395,15.4998,204.95,204.86,31.16665601]
[1731303610598,20.3791,204.95,204.88,31.16665601]
[1731303611210,15.3998,204.95,204.9,31.16665601]
[1731303611425,6.25,205.0,204.94,31.16665601]
[1731303611643,6.25,205.0,204.96,31.16665601]
[1731303611927,16.5972,205.04,204.98,31.16665601]
[1731303612113,6.1648,205.08,205.03,31.16665601]
[1731303612301,6.1648,205.08,205.06,31.16665601]
[1731303613021,0.12549,205.07,205.06,31.16665601]
[1731303613235,0.12549,205.07,204.85,20.0]
[1731303613236,0.12549,205.07,204.87,0.2]
[1731303613405,37.33145601,205.08,205.0,31.16665601]
[1731303613604,6.1648,205.08,205.02,31.16665601]
[1731303614214,31.16665601,205.1,204.87,0.2]
[1731303614215,46.48505601,205.13,205.04,31.16665601]
[1731303614427,15.3184,205.13,205.06,31.16665601]
[1731303614632,15.3184,205.13,205.08,31.16665601]
[1731303614923,0.12549,205.16,204.97,0.1]
[1731303615116,0.12549,205.16,205.11,31.16665601]
[1731303616104,4.99979,205.16,204.97,0.1]
[1731303616309,31.16665601,205.15,205.07,31.16665601]
[1731303616524,0.12549,205.14,205.07,31.16665601]
[1731303616829,4.99979,205.16,205.07,31.16665601]
[1731303617324,4.99979,205.16,205.04,31.16665601]
[1731303617627,0.12549,205.11,204.97,0.1]
[1731303617826,0.12549,205.11,205.06,31.16665601]
[1731303618628,0.12549,205.16,205.1,31.16665601]
[1731303619409,0.12549,205.16,205.12,31.16665601]
[1731303620224,0.12549,205.16,205.14,31.16665601]
[1731303622126,0.12549,205.16,205.15,20.0]
[1731303622835,0.12549,205.16,205.12,31.16665601]
[1731303623133,31.29214601,205.16,205.1,31.16665601]
[1731303623323,31.29214601,205.16,205.08,31.16665601]
[1731303624242,31.16665601,205.12,205.04,31.16665601]
[1731303625331,31.16665601,205.13,205.05,31.16665601]
[1731303626233,31.16665601,205.15,205.07,31.16665601]
[1731303626423,0.12549,205.16,205.1,31.16665601]
[1731303626734,0.12549,205.16,205.11,31.16665601]
[1731303626916,0.12549,205.16,205.13,50.22745124]
[1731303627239,0.12549,205.16,205.14,20.0]
[1731303627732,0.12549,205.16,205.13,50.22745124]